bitfinex-derivatives/quotes_SOLF0:USTF0_20241012
["timestamp","ask_amount","ask_price","bid_price","bid_amount"]
[1728721693257,3.55732,145.73,145.7,4.8346]
[1728721693460,3.55732,145.73,145.71,8.44]
[1728721702066,3.55732,145.73,145.7,4.8346]
[1728721702263,3.55732,145.73,145.71,8.44]
[1728721703356,0.12502,145.73,145.71,8.44]
[1728721710576,8.56502,145.73,145.67,1.3005]
[1728721710870,8.44,145.71,145.67,1.3005]
[1728721711467,3.433,145.7,145.67,1.3005]
[1728721719082,3.4333,145.69,145.67,1.3005]
[1728721720177,8.44,145.71,145.67,1.3005]
[1728721720384,3.4329,145.7,145.67,1.3005]
[1728721725289,3.4327,145.71,145.67,13.1739]
[1728721725581,3.4327,145.71,145.67,9.7405]
[1728721726387,3.4327,145.71,145.68,3.4333]
[1728721741998,3.4327,145.71,145.67,11.0903]
[1728721742297,11.8727,145.71,145.67,14.5238]
[1728721747401,3.4327,145.71,145.67,14.5238]
[1728721751104,3.4329,145.7,145.67,14.5238]
[1728721772009,3.4329,145.7,145.67,6.0838]
[1728721774124,0.12502,145.73,145.67,2.6503]
[1728721774319,0.12502,145.73,145.68,3.4333]
[1728721775423,3.4327,145.71,145.68,3.4333]
[1728721781928,3.55732,145.73,145.69,8.44]
[1728721782130,3.55732,145.73,145.7,8.44]
[1728721783429,3.55732,145.73,145.7,11.8727]
[1728721787518,0.12502,145.73,145.72,3.4324]
[1728721787722,0.12502,145.73,145.71,8.44]
[1728721788119,0.12502,145.73,145.71,11.8725]
[1728721788332,0.12502,145.73,145.71,8.44]
[1728721789228,0.12502,145.73,145.71,11.8726]
[1728721792837,0.12502,145.73,145.72,3.4324]
[1728721793131,0.12502,145.73,145.71,8.44]
[1728721795532,0.12502,145.73,145.71,11.8726]
[1728721797533,0.12502,145.73,145.71,8.44]
[1728721800432,3.55722,145.73,145.71,8.44]
[1728721802832,0.12502,145.73,145.72,8.44]
[1728721803830,0.12502,145.73,145.72,11.8724]
[1728721804131,0.12502,145.73,145.71,2.7663]
[1728721805427,3.55742,145.73,145.71,2.7663]
[1728721808036,0.12502,145.73,145.71,2.7663]
[1728721808234,8.56502,145.73,145.67,9.8085]
[1728721808533,8.44,145.71,145.67,9.8085]
[1728721809236,8.44,145.71,145.67,1.3685]
[1728721809441,8.44,145.71,145.66,11.1826]
[1728721809831,8.44,145.7,145.66,2.7426]
[1728721810031,8.44,145.68,145.62,1.399]
[1728721810243,8.44,145.67,145.62,12.5457]
[1728721810740,11.8737,145.67,145.63,3.4344]
[1728721819539,8.44,145.67,145.62,4.1057]
[1728721819740,8.44,145.67,145.62,7.5402]
[1728721819741,3.4338,145.66,145.62,7.5402]
[1728721819943,3.4338,145.66,145.63,8.44]
[1728721821349,3.4336,145.67,145.64,8.44]
[1728721822150,76.54377155,145.73,145.65,11.874]
[1728721822451,8.44,145.7,145.65,11.874]
[1728721823046,3.4335,145.68,145.65,11.874]
[1728721823649,3.4335,145.68,145.65,8.44]
[1728721824056,3.4335,145.68,145.64,11.8742]
[1728721824457,3.4336,145.67,145.64,11.8742]
[1728721829659,11.8736,145.67,145.64,3.4342]
[1728721829852,8.44,145.67,145.63,8.44]
[1728721830053,3.35115111,145.71,145.63,8.44]
[1728721830054,3.4339,145.66,145.63,11.8745]
[1728721831767,3.4335,145.68,145.64,11.8742]
[1728721831955,11.8735,145.68,145.64,11.8742]
[1728721833249,3.4336,145.67,145.64,11.8742]
[1728721833457,11.8736,145.67,145.64,3.4342]
[1728721833861,11.8736,145.67,145.63,11.8744]
[1728721848474,3.4338,145.66,145.63,11.8744]
[1728721856377,11.8737,145.67,145.63,11.8744]
[1728721857174,3.4339,145.66,145.63,11.8744]
[1728721860697,8.44,145.67,145.63,11.8744]
[1728721860888,11.8737,145.67,145.63,11.8744]
[1728721861090,11.8737,145.67,145.63,3.4344]
[1728721861388,8.44,145.64,145.61,1.45952]
[1728721862394,3.4345,145.63,145.61,1.45952]
[1728721862596,8.44,145.64,145.61,1.45952]
[1728721862994,11.8744,145.64,145.61,1.45952]
[1728721864292,11.8744,145.64,145.61,0.12502]
[1728721865588,3.4347,145.62,145.61,0.12502]
[1728721867193,11.8746,145.63,145.61,0.12502]
[1728721876295,3.4346,145.63,145.61,0.12502]
[1728721881709,11.8746,145.63,145.61,0.12502]
[1728721890715,3.4344,145.64,145.61,0.12502]
[1728721891017,11.8744,145.64,145.61,0.12502]
[1728721891912,3.4346,145.63,145.61,0.12502]
[1728721896924,11.8746,145.63,145.61,0.12502]
[1728721923252,3.4347,145.62,145.61,0.12502]
[1728721933256,8.44,145.58,145.56,4.0739]
[1728721933558,8.44,145.58,145.56,2.7667]
[1728721933755,8.44,145.58,145.56,6.2028]
[1728721933961,8.44,145.59,145.56,6.2028]
[1728721937061,3.4353,145.6,145.56,14.6428]
[1728721937363,11.8753,145.6,145.56,14.6428]
[1728721938364,11.8753,145.6,145.56,6.2028]
[1728721942361,87.34186695,145.65,145.56,11.2067]
[1728721942562,3.4351,145.61,145.57,11.8758]
[1728721943465,3.4351,145.61,145.57,3.4358]
[1728721944262,11.8751,145.61,145.57,3.4358]
[1728721951579,8.44,145.61,145.57,3.4358]
[1728721951781,3.4352,145.6,145.57,3.4358]
[1728721968686,3.4352,145.6,145.56,6.2028]
[1728721970688,8.44,145.59,145.56,6.2028]
[1728721974793,3.4352,145.6,145.56,2.7667]
[1728721975093,11.8752,145.6,145.57,3.4359]
[1728721975288,11.8752,145.6,145.56,2.7667]
[1728721975589,11.8752,145.6,145.56,6.2028]
[1728721976287,3.4355,145.59,145.56,3.4361]
[1728721983196,11.8755,145.59,145.55,0.12502]
[1728721983395,3.4361,145.57,145.55,0.12502]
[1728721984292,8.44,145.58,145.55,0.12502]
[1728721984494,3.4361,145.57,145.55,0.12502]
[1728721996096,3.4359,145.57,145.55,0.12502]
[1728721998994,8.44,145.58,145.55,0.12502]
[1728721999191,3.4361,145.57,145.55,0.12502]
[1728722000798,8.44,145.58,145.55,0.12502]
[1728722000999,3.4362,145.56,145.55,0.12502]
[1728722001801,11.8762,145.56,145.55,0.12502]
[1728722036023,3.4362,145.56,145.55,0.12502]
[1728722036223,11.8762,145.56,145.55,0.12502]
[1728722044337,3.4362,145.56,145.55,0.12502]
[1728722044541,11.8762,145.56,145.55,0.12502]
[1728722054139,8.44,145.56,145.43,22.16412212]
[1728722054444,8.44,145.55,145.43,22.16412212]
[1728722054646,8.44,145.55,145.49,8.44]
[1728722054948,11.8766,145.55,145.52,3.4371]
[1728722055537,92.26046099,145.59,145.52,8.44]
[1728722055744,100.70046099,145.59,145.53,8.44]
[1728722056050,8.44,145.58,145.53,8.44]
[1728722056238,8.44,145.58,145.54,3.4366]
[1728722056239,0.12502,145.55,145.54,3.4366]
[1728722057447,0.12502,145.55,145.54,3.31158]
[1728722060548,8.44,145.58,145.54,8.44]
[1728722060748,8.44,145.58,145.56,3.436]
[1728722061751,95.69596099,145.59,145.5,2.7117]
[1728722061752,3.49610651,145.59,145.58,3.4357]
[1728722061951,3.49610651,145.59,145.58,11.8757]
[1728722062258,0.12502,145.61,145.6,3.4352]
[1728722062553,0.12502,145.61,145.6,11.8752]
[1728722067762,3.4338,145.66,145.63,3.4345]
[1728722071264,8.44,145.65,145.61,1.3183]
[1728722071563,11.8742,145.65,145.61,4.7531]
[1728722073763,11.8742,145.65,145.62,3.4347]
[1728722096282,3.4342,145.65,145.62,3.4347]
[1728722096482,11.8742,145.65,145.62,3.4347]
[1728722096679,8.44,145.65,145.62,3.4347]
[1728722103896,8.44,145.65,145.63,3.4345]
[1728722105194,0.12502,145.67,145.62,8.44]
[1728722105390,11.99872,145.67,145.64,3.4343]
[1728722108193,8.56502,145.67,145.62,8.44]
[1728722108397,3.4338,145.66,145.63,3.4344]
[1728722111900,11.8738,145.66,145.63,3.4344]
[1728722113202,0.12502,145.67,145.61,13.15799758]
[1728722113407,8.44,145.66,145.64,3.4341]
[1728722114599,8.44,145.66,145.61,13.15799758]
[1728722114799,11.8738,145.66,145.63,3.4344]
[1728722120702,8.44,145.66,145.61,13.15799758]
[1728722120907,11.8741,145.65,145.62,3.4346]
[1728722123201,3.4349,145.62,145.58,3.4355]
[1728722123402,8.44,145.61,145.55,9.94932]
[1728722123709,8.44,145.6,145.56,3.41549938]
[1728722123911,8.44,145.59,145.55,1.50932]
[1728722124315,8.44,145.59,145.55,4.89528364]
[1728722124507,8.44,145.59,145.55,1.50932]
[1728722124909,8.44,145.59,145.55,4.94572]
[1728722125109,2.6521,145.66,145.55,0.12502]
[1728722125110,8.44,145.57,145.55,0.12502]
[1728722136718,3.4358,145.58,145.55,0.12502]
[1728722136915,11.8755,145.59,145.56,3.4361]
[1728722140727,8.44,145.59,145.56,3.4361]
[1728722141025,3.4354,145.6,145.56,3.4361]
[1728722141226,8.44,145.59,145.56,3.4361]
[1728722141725,11.8755,145.59,145.56,3.4361]
[1728722142929,8.44,145.59,145.56,3.4361]
[1728722143628,8.44,145.59,145.57,3.4359]
[1728722149430,1.3426,145.65,145.57,8.44]
[1728722149637,8.44,145.62,145.57,8.44]
[1728722149930,11.8748,145.62,145.59,3.4353]
[1728722151131,3.4348,145.62,145.59,3.4353]
[1728722155032,11.8748,145.62,145.59,3.4353]
[1728722158729,8.44,145.61,145.59,3.4353]
[1728722167549,11.875,145.61,145.59,3.4353]
[1728722170840,11.875,145.61,145.56,9.7778]
[1728722171144,11.875,145.61,145.58,3.4355]
[1728722175048,8.44,145.61,145.59,3.4353]
[1728722175843,11.8748,145.62,145.59,3.4353]
[1728722176342,11.8746,145.63,145.6,3.4352]
[1728722183754,8.44,145.62,145.6,3.4352]
[1728722189252,11.8748,145.62,145.59,3.4354]
[1728722191151,8.44,145.62,145.59,3.4354]
[1728722200160,8.44,145.62,145.58,8.44]
[1728722200358,8.44,145.62,145.6,3.4352]
[1728722213168,8.44,145.62,145.57,8.44]
[1728722213369,8.44,145.62,145.59,3.4353]
[1728722214369,8.44,145.62,145.6,3.4352]
[1728722215874,1.3426,145.65,145.6,3.4352]
[1728722216071,8.44,145.66,145.62,3.4347]
[1728722216473,8.44,145.66,145.62,6.7852842]
[1728722216972,3.434,145.66,145.63,3.4345]
[1728722217473,11.874,145.66,145.63,3.4345]
[1728722221883,8.44,145.65,145.63,3.4345]
[1728722230087,11.874,145.66,145.63,3.4345]
[1728722232792,8.44,145.65,145.63,3.4345]
[1728722248104,0.12502,145.67,145.64,8.44]
[1728722248899,0.12502,145.67,145.64,11.79597146]
[1728722249101,0.12502,145.67,145.66,3.4338]
[1728722257911,8.56502,145.67,145.64,3.4341]
[1728722258213,8.44,145.65,145.64,3.37371161]
[1728722258511,8.44,145.65,145.62,1.4014]
[1728722258711,8.44,145.65,145.63,3.4343]
[1728722259111,8.44,145.65,145.64,3.45613128]
[1728722274429,8.44,145.66,145.64,3.45613128]
[1728722280427,11.8739,145.66,145.64,3.45613128]
[1728722281430,8.44,145.66,145.64,3.45613128]
[1728722282643,8.44,145.66,145.64,6.89033128]
[1728722282933,8.44,145.66,145.64,3.4342]
[1728722283530,8.44,145.66,145.64,6.78352051]
[1728722288837,8.56502,145.67,145.64,3.34932051]
[1728722289046,0.12502,145.67,145.64,11.78932051]
[1728722289239,0.12502,145.67,145.64,8.44]
[1728722289943,0.12502,145.67,145.64,11.86578278]
[1728722290140,0.12502,145.67,145.66,11.8738]
[1728722290350,0.12502,145.73,145.66,8.44]
[1728722290640,0.12502,145.73,145.7,3.4327]
[1728722292336,0.12502,145.73,145.71,3.4326]
[1728722293743,8.56502,145.73,145.71,3.4326]
[1728722294852,0.12502,145.73,145.69,11.86131855]
[1728722295039,0.12502,145.73,145.72,3.4324]
[1728722322869,86.57570709,145.76,145.74,3.4319]
[1728722324474,95.01570709,145.76,145.73,6.93875225]
[1728722324677,95.01570709,145.76,145.73,3.4321]
[1728722324876,86.57570709,145.76,145.73,3.4321]
[1728722325074,95.01570709,145.76,145.73,3.4321]
[1728722325468,95.01570709,145.76,145.73,6.93185257]
[1728722327464,95.01570709,145.76,145.73,3.4321]
[1728722330979,95.01570709,145.76,145.74,3.4319]
[1728722332078,8.44,145.77,145.74,3.4319]
[1728722334882,3.431,145.78,145.74,3.4319]
[1728722335182,11.871,145.78,145.74,3.4319]
[1728722337579,8.44,145.76,145.74,3.4319]
[1728722342282,8.44,145.76,145.75,3.4317]
[1728722342478,3.431,145.78,145.75,3.4317]
[1728722342684,11.871,145.78,145.75,3.4317]
[1728722343489,196.1650436,146.11,145.78,3.431]
[1728722343490,0.12502,145.85,145.78,3.431]
[1728722343787,8.56502,145.85,145.78,8.44]
[1728722344185,11.99442,145.85,145.81,3.4301]
[1728722345085,8.44,145.84,145.81,6.93149303]
[1728722345292,8.44,145.84,145.81,3.4301]
[1728722353003,11.99442,145.85,145.81,3.4301]
[1728722358503,3.4296,145.84,145.81,3.4301]
[1728722380723,3.55452,145.85,145.81,3.4301]
[1728722383024,3.4298,145.84,145.81,3.4301]
[1728722389032,88.73817259,145.85,145.8,11.81035236]
[1728722389233,88.73817259,145.85,145.82,3.43]
[1728722389234,100.60757259,145.85,145.82,3.43]
[1728722391638,3.4299,145.83,145.8,3.4304]
[1728722391934,8.44,145.84,145.78,9.794]
[1728722392130,3.4298,145.83,145.79,8.39761748]
[1728722392331,3.4298,145.83,145.79,3.4307]
[1728722392531,3.4298,145.83,145.8,3.39172717]
[1728722392725,11.8698,145.83,145.8,3.39172717]
[1728722393434,11.8698,145.83,145.79,3.4307]
[1728722394439,11.8698,145.83,145.8,3.43415751]
[1728722395831,3.4298,145.83,145.8,6.86465751]
[1728722396037,3.4298,145.83,145.8,3.4305]
[1728722396629,3.4298,145.83,145.8,6.856424]
[1728722402433,11.8702,145.82,145.78,4.7849]
[1728722402636,8.44,145.81,145.79,4.97518068]
[1728722402843,8.44,145.81,145.77,62.33356064]
[1728722403042,8.44,145.81,145.78,4.97692009]
[1728722403245,8.44,145.81,145.77,62.33356064]
[1728722403542,11.8704,145.81,145.78,8.40883201]
[1728722403842,88.73817259,145.85,145.79,13.41690739]
[1728722404046,3.4297,145.84,145.8,8.40730739]
[1728722404246,3.4297,145.84,145.81,4.97690739]
[1728722404438,3.4297,145.84,145.8,6.89202969]
[1728722404749,3.4297,145.84,145.81,4.97610365]
[1728722404946,3.4297,145.84,145.8,6.89202969]
[1728722405244,3.4297,145.84,145.81,4.97555095]
[1728722405434,100.60757259,145.85,145.82,4.97555095]
[1728722405743,100.60757259,145.85,145.81,3.4301]
[1728722405940,100.60757259,145.85,145.82,8.40647268]
[1728722406140,100.60757259,145.85,145.82,3.43]
[1728722408137,92.16757259,145.85,145.82,3.43]
[1728722408337,100.60757259,145.85,145.82,3.43]
[1728722410145,100.60757259,145.85,145.83,4.98064907]
[1728722410345,100.60757259,145.85,145.82,3.43]
[1728722410549,100.60757259,145.85,145.83,4.9824783]
[1728722410844,100.60757259,145.85,145.82,3.43]
[1728722411044,100.60757259,145.85,145.83,4.98250245]
[1728722411247,100.60757259,145.85,145.82,3.43]
[1728722411440,100.60757259,145.85,145.83,4.98253316]
[1728722411643,100.60757259,145.85,145.82,3.43]
[1728722411839,100.60757259,145.85,145.83,4.98474353]
[1728722412045,100.60757259,145.85,145.82,3.43]
[1728722412344,100.60757259,145.85,145.83,4.98474359]
[1728722412549,100.60757259,145.85,145.84,4.98474359]
[1728722413049,100.60757259,145.85,145.82,3.43]
[1728722413251,100.60757259,145.85,145.83,4.98779783]
[1728722413442,100.60757259,145.85,145.82,3.43]
[1728722413644,100.60757259,145.85,145.83,4.98791898]
[1728722413843,100.60757259,145.85,145.82,3.43]
[1728722414048,100.60757259,145.85,145.83,4.98789907]
[1728722414248,100.60757259,145.85,145.82,3.43]
[1728722414447,100.60757259,145.85,145.83,4.98786792]
[1728722414649,100.60757259,145.85,145.82,3.43]
[1728722414850,100.60757259,145.85,145.83,4.98852307]
[1728722415051,100.60757259,145.85,145.82,3.43]
[1728722415355,100.60757259,145.85,145.83,4.9885153]
[1728722415547,100.60757259,145.85,145.82,3.43]
[1728722415848,100.60757259,145.85,145.83,4.98852897]
[1728722416052,100.60757259,145.85,145.82,3.43]
[1728722416350,100.60757259,145.85,145.83,4.9885532]
[1728722416551,100.60757259,145.85,145.82,3.43]
[1728722416757,100.60757259,145.85,145.83,4.9886068]
[1728722416954,100.60757259,145.85,145.82,3.43]
[1728722417149,100.60757259,145.85,145.83,4.9886063]
[1728722417462,100.60757259,145.85,145.82,3.43]
[1728722417762,100.60757259,145.85,145.83,4.98860215]
[1728722417948,100.60757259,145.85,145.82,3.43]
[1728722418256,100.60757259,145.85,145.83,4.9886027]
[1728722418454,100.60757259,145.85,145.82,3.43]
[1728722418761,100.60757259,145.85,145.83,4.98854488]
[1728722418960,100.60757259,145.85,145.82,3.43]
[1728722419163,100.60757259,145.85,145.83,4.98859633]
[1728722419457,100.60757259,145.85,145.82,3.43]
[1728722419759,100.60757259,145.85,145.83,4.98860403]
[1728722420061,100.60757259,145.85,145.84,4.98860403]
[1728722421749,100.60757259,145.85,145.82,3.43]
[1728722422153,100.60757259,145.85,145.83,4.98863851]
[1728722422361,100.60757259,145.85,145.84,4.98863851]
[1728722424453,88.73817259,145.85,145.84,4.98863851]
[1728722424856,88.73817259,145.85,145.81,8.44]
[1728722425060,88.73817259,145.85,145.82,4.98843819]
[1728722425257,88.73817259,145.85,145.83,4.98843819]
[1728722425460,0.12502,145.85,145.84,8.41803819]
[1728722426161,0.12502,145.85,145.84,3.4296]
[1728722426362,0.12502,145.85,145.84,8.41796081]
[1728722427056,0.12502,145.85,145.84,3.4296]
[1728722435166,0.12502,145.85,145.84,8.41573534]
[1728722437074,0.12502,145.85,145.84,4.98613534]
[1728722438165,0.12502,145.85,145.83,3.4297]
[1728722438366,0.12502,145.85,145.84,4.98588205]
[1728722441579,0.12502,145.85,145.84,4.98539916]
[1728722442071,0.12502,145.85,145.83,3.4297]
[1728722442770,0.12502,145.85,145.84,3.4296]
[1728722444774,0.12502,145.85,145.84,8.41411356]
[1728722444971,0.12502,145.85,145.84,3.4296]
[1728722445173,0.12502,145.85,145.84,8.41359381]
[1728722447277,0.12502,145.85,145.84,16.85359381]
[1728722447572,0.12502,145.85,145.84,8.41359381]
[1728722451775,0.12502,145.85,145.84,3.4296]
[1728722451982,0.12502,145.85,145.84,8.41157133]
[1728722452168,0.12502,145.85,145.84,3.4296]
[1728722452375,0.12502,145.85,145.84,8.41167414]
[1728722455175,0.12502,145.85,145.84,3.4296]
[1728722455375,0.12502,145.85,145.84,8.41100875]
[1728722458780,0.12502,145.85,145.8,4.75762969]
[1728722458781,0.12502,145.85,145.83,3.4297]
[1728722459087,0.12502,145.85,145.84,4.98018107]
[1728722459284,11.99432,145.85,145.84,4.98018107]
[1728722459788,8.56502,145.85,145.8,1.296]
[1728722459980,8.44,145.82,145.81,4.98341905]
[1728722460392,11.87,145.82,145.81,4.98341905]
[1728722460585,8.44,145.82,145.78,62.33008109]
[1728722460781,8.44,145.79,145.74,2.831]
[1728722460988,8.44,145.76,145.75,4.9868258]
[1728722461185,8.44,145.76,145.73,3.55712]
[1728722461186,3.4314,145.77,145.73,3.55712]
[1728722461386,8.44,145.75,145.74,4.98689405]
[1728722461788,3.4315,145.76,145.74,4.98866098]
[1728722462084,8.44,145.75,145.73,0.12502]
[1728722462889,3.4319,145.74,145.73,0.12502]
[1728722466089,11.8717,145.75,145.73,0.12502]
[1728722466294,8.44,145.76,145.73,0.12502]
[1728722467381,11.8716,145.76,145.73,0.12502]
[1728722467688,8.44,145.74,145.73,0.12502]
[1728722467884,3.45196362,145.78,145.73,0.12502]
[1728722468085,8.44,145.74,145.73,0.12502]
[1728722470794,3.37185945,145.78,145.73,0.12502]
[1728722470996,8.44,145.78,145.73,11.99702]
[1728722471890,11.8711,145.78,145.73,11.99702]
[1728722472095,8.44,145.78,145.73,11.99702]
[1728722473396,3.4312,145.77,145.73,11.99702]
[1728722473794,1.395,145.83,145.74,3.4319]
[1728722473993,8.44,145.78,145.74,3.4319]
[1728722474194,4.78081607,145.83,145.74,3.4319]
[1728722474499,8.44,145.78,145.74,3.4319]
[1728722474796,8.44,145.78,145.75,3.4317]
[1728722475398,11.8711,145.78,145.75,3.4317]
[1728722492407,8.44,145.79,145.76,3.4314]
[1728722493007,11.8708,145.79,145.76,3.4314]
[1728722494409,8.44,145.78,145.76,3.4314]
[1728722497113,3.4308,145.79,145.76,3.4314]
[1728722497411,11.8708,145.79,145.76,3.4314]
[1728722498407,8.44,145.78,145.76,3.4314]
[1728722499316,11.871,145.78,145.75,6.80711488]
[1728722499615,11.871,145.78,145.75,3.4316]
[1728722500114,11.871,145.78,145.75,6.845551]
[1728722502213,11.871,145.78,145.75,3.4316]
[1728722505325,8.44,145.78,145.75,6.81088986]
[1728722505524,11.8709,145.79,145.75,3.4316]
[1728722505723,11.8709,145.79,145.75,6.89050754]
[1728722505926,11.8709,145.79,145.75,3.4316]
[1728722506525,11.8709,145.79,145.75,6.93076264]
[1728722508325,8.44,145.78,145.75,6.93076264]
[1728722510420,11.871,145.78,145.75,6.93076264]
[1728722510624,8.44,145.78,145.73,0.12502]
[1728722510827,11.8713,145.77,145.74,3.4318]
[1728722517737,3.4313,145.77,145.74,3.4318]
[1728722518736,3.431,145.78,145.75,6.77804462]
[1728722519126,3.431,145.78,145.75,3.4317]
[1728722519540,3.431,145.78,145.75,6.80343991]
[1728722520035,8.44,145.79,145.75,6.80343991]
[1728722520235,3.4308,145.79,145.76,3.4314]
[1728722521834,8.44,145.78,145.76,3.4314]
[1728722528353,8.44,145.78,145.77,4.98304025]
[1728722528641,8.44,145.78,145.76,3.4314]
[1728722530644,3.4308,145.79,145.76,3.4314]
[1728722532845,3.4308,145.79,145.77,4.98272028]
[1728722533047,3.4308,145.79,145.76,3.4314]
[1728722533241,3.4308,145.79,145.77,4.98371007]
[1728722533438,3.4308,145.79,145.76,3.4314]
[1728722533650,3.4308,145.79,145.77,4.98385928]
[1728722533851,3.4308,145.79,145.76,3.4314]
[1728722534039,3.4308,145.79,145.77,4.98385923]
[1728722534342,3.4308,145.79,145.76,3.4314]
[1728722534652,3.4308,145.79,145.77,4.98517545]
[1728722534840,3.4308,145.79,145.76,3.4314]
[1728722535044,3.4308,145.79,145.77,4.98546612]
[1728722535245,3.4308,145.79,145.76,3.4314]
[1728722535548,3.4308,145.79,145.77,4.98684037]
[1728722535745,3.4308,145.79,145.76,3.4314]
[1728722535945,3.4308,145.79,145.77,4.9868494]
[1728722536253,8.44,145.81,145.77,3.4311]
[1728722536254,3.4307,145.8,145.77,3.4311]
[1728722537254,3.4308,145.79,145.78,4.98848626]
[1728722539556,3.4308,145.79,145.78,4.99037365]
[1728722542754,3.4308,145.79,145.76,3.4314]
[1728722543057,3.4308,145.79,145.77,4.99336402]
[1728722543254,3.4308,145.79,145.78,4.99336402]
[1728722544459,3.4308,145.79,145.76,3.4314]
[1728722544657,3.4308,145.79,145.77,4.9936922]
[1728722544861,3.4306,145.8,145.78,4.9936922]
[1728722545055,3.4306,145.8,145.77,3.4312]
[1728722545356,3.4306,145.8,145.78,4.99379441]
[1728722545556,3.4306,145.8,145.79,4.99379441]
[1728722545761,3.40307595,145.82,145.79,4.99379441]
[1728722546054,9.8441,145.84,145.8,4.99203477]
[1728722546255,8.44,145.84,145.78,8.44]
[1728722546447,8.44,145.84,145.79,4.99129877]
[1728722546758,8.44,145.84,145.8,4.99129887]
[1728722546957,4.0109,145.88,145.81,4.99095653]
[1728722547258,8.44,145.84,145.78,11.95093221]
[1728722547461,3.4299,145.83,145.8,3.4303]
[1728722547657,3.4299,145.83,145.81,4.99023963]
[1728722547855,3.4299,145.83,145.8,3.4303]
[1728722548152,3.4299,145.83,145.81,4.99018814]
[1728722548357,3.43,145.82,145.79,3.4307]
[1728722548661,11.87,145.82,145.8,4.98950127]
[1728722548864,11.87,145.82,145.79,3.4307]
[1728722549057,11.87,145.82,145.8,4.98963207]
[1728722549255,11.87,145.82,145.79,3.4307]
[1728722549859,11.87,145.82,145.8,4.98918464]
[1728722550154,11.87,145.82,145.79,3.4307]
[1728722550359,11.87,145.82,145.8,4.9887712]
[1728722550661,11.87,145.82,145.81,4.98854996]
[1728722550662,8.44,145.82,145.81,4.98854996]
[1728722551253,8.44,145.82,145.8,3.4305]
[1728722552958,3.4297,145.84,145.81,3.4302]
[1728722556263,3.4297,145.84,145.82,4.98385362]
[1728722556464,11.8697,145.84,145.81,3.4302]
[1728722556660,11.8697,145.84,145.82,4.98260863]
[1728722556866,11.8697,145.84,145.81,3.4302]
[1728722558357,3.4297,145.84,145.81,3.4302]
[1728722558562,3.55442,145.85,145.82,3.43]
[1728722558763,0.12502,145.85,145.81,8.44]
[1728722558963,0.12502,145.85,145.82,4.97909632]
[1728722559158,0.12502,145.85,145.83,8.40889632]
[1728722559366,0.12502,145.85,145.83,3.4298]
[1728722559557,0.12502,145.85,145.83,3.4296]
[1728722567988,3.55442,145.85,145.82,3.43]
[1728722568189,0.12502,145.85,145.82,3.43]
[1728722574091,0.12502,145.85,145.82,11.87]
[1728722575087,3.55442,145.85,145.82,3.43]
[1728722583796,3.4299,145.83,145.8,3.4304]
[1728722583996,8.56502,145.85,145.79,12.4163]
[1728722584799,3.4297,145.84,145.81,3.4302]
[1728722585704,3.4297,145.84,145.8,8.44]
[1728722587399,3.4297,145.84,145.81,3.4302]
[1728722591006,11.99442,145.85,145.81,3.4302]
[1728722591509,3.55442,145.85,145.81,3.4302]
[1728722591910,3.55442,145.85,145.81,11.8702]
[1728722592112,3.55442,145.85,145.82,3.43]
[1728722594402,0.12502,145.85,145.82,8.44]
[1728722595008,0.12502,145.85,145.83,3.4296]
[1728722605025,0.12502,145.85,145.84,3.4296]
[1728722606112,0.12502,145.85,145.83,3.4297]
[1728722615323,0.12502,145.85,145.81,8.44]